[Event "January 9 Late 2024"]
[Site "https://www.chess.com"]
[Date "2024.01.10"]
[Round "11"]
[White "Jazdanovs, Aleksandrs"]
[Black "Toktomushev, Teimur"]
[Result "0-1"]
[Board "100"]
[TimeControl "180+1"]
[WhiteFideId "11604492"]
[BlackFideId "14176726"]
[WhiteElo "2335"]
[BlackElo "2433"]
[WhiteTeam "LAT"]
[BlackTeam "UKR"]
[WhiteClock "0:01:14"]
[BlackClock "0:00:08"]

1. e4 {[%clk 0:03:00]}  c5 {[%clk 0:03:00]} 2. Nf3 {[%clk 0:03:00]}  e6 {[%clk 0:03:00]} 3. d4 {[%clk 0:03:00]}  cxd4 {[%clk 0:03:01]} 4. Nxd4 {[%clk 0:03:01]}  a6 {[%clk 0:03:02]} 5. Nc3 {[%clk 0:03:01]}  b5 {[%clk 0:03:02]} 6. g3 {[%clk 0:03:00]}  Bb7 {[%clk 0:03:02]} 7. Bg2 {[%clk 0:03:00]}  Nf6 {[%clk 0:03:03]} 8. O-O {[%clk 0:03:00]}  b4 {[%clk 0:03:03]} 9. Nd5 {[%clk 0:02:52]}  exd5 {[%clk 0:02:56]} 10. exd5 {[%clk 0:02:53]}  Bc5 {[%clk 0:02:48]} 11. Re1+ {[%clk 0:02:52]}  Kf8 {[%clk 0:02:48]} 12. Nf5 {[%clk 0:02:47]}  h6 {[%clk 0:02:29]} 13. d6 {[%clk 0:02:19]}  Bxg2 {[%clk 0:02:25]} 14. Kxg2 {[%clk 0:02:20]}  Nc6 {[%clk 0:02:05]} 15. Bf4 {[%clk 0:02:20]}  g6 {[%clk 0:01:47]} 16. Ne7 {[%clk 0:02:15]}  Kg7 {[%clk 0:01:32]} 17. Nd5 {[%clk 0:02:14]}  Bd4 {[%clk 0:01:12]} 18. Nc7 {[%clk 0:02:03]}  Ra7 {[%clk 0:00:57]} 19. c3 {[%clk 0:02:01]}  bxc3 {[%clk 0:00:47]} 20. Qd3 {[%clk 0:02:00]}  cxb2 {[%clk 0:00:43]} 21. Rab1 {[%clk 0:02:00]}  Bb6 {[%clk 0:00:32]} 22. Nd5 {[%clk 0:01:58]}  Nxd5 {[%clk 0:00:29]} 23. Qxd5 {[%clk 0:01:59]}  Qf6 {[%clk 0:00:28]} 24. Qb3 {[%clk 0:01:52]}  Bd4 {[%clk 0:00:26]} 25. Qd3 {[%clk 0:01:45]}  Raa8 {[%clk 0:00:21]} 26. Re4 {[%clk 0:01:28]}  Rhe8 {[%clk 0:00:20]} 27. Bd2 {[%clk 0:01:28]}  Rxe4 {[%clk 0:00:20]} 28. Qxe4 {[%clk 0:01:29]}  Qxd6 {[%clk 0:00:16]} 29. Rd1 {[%clk 0:01:25]}  Qe6 {[%clk 0:00:14]} 30. Qd3 {[%clk 0:01:24]}  Qd5+ {[%clk 0:00:12]} 31. f3 {[%clk 0:01:25]}  Rb8 {[%clk 0:00:11]} 32. Bf4 {[%clk 0:01:24]}  b1=Q {[%clk 0:00:08]} 33. Rxb1 {[%clk 0:01:24]}  Qxa2+ {[%clk 0:00:09]} 34. Kh3 {[%clk 0:01:23]}  Qxb1 {[%clk 0:00:09]} 35. Qxa6 {[%clk 0:01:21]}  Qf5+ {[%clk 0:00:08]} 36. Kg2 {[%clk 0:01:14]}  Rb2+ {[%clk 0:00:08]} 0-1

[Event "January 9 Late 2024"]
[Site "https://www.chess.com"]
[Date "2024.01.09"]
[Round "11"]
[White "Avalos Parra, Joao"]
[Black "Eggleston, Thomas A"]
[Result "0-1"]
[Board "102"]
[TimeControl "180+1"]
[WhiteFideId "3402541"]
[BlackFideId "412139"]
[WhiteElo "2409"]
[BlackElo "2277"]
[WhiteTeam "CHI"]
[BlackTeam "ENG"]
[WhiteClock "0:00:48"]
[BlackClock "0:00:07"]

1. d4 {[%clk 0:03:00]}  e6 {[%clk 0:02:59]} 2. c4 {[%clk 0:03:01]}  f5 {[%clk 0:02:59]} 3. Bf4 {[%clk 0:02:59]}  Nf6 {[%clk 0:02:59]} 4. e3 {[%clk 0:03:00]}  Bb4+ {[%clk 0:02:58]} 5. Nd2 {[%clk 0:02:59]}  Ne4 {[%clk 0:02:58]} 6. Nf3 {[%clk 0:03:00]}  O-O {[%clk 0:02:47]} 7. a3 {[%clk 0:02:59]}  Be7 {[%clk 0:02:39]} 8. Bd3 {[%clk 0:02:57]}  d5 {[%clk 0:02:38]} 9. h3 {[%clk 0:02:55]}  c5 {[%clk 0:02:38]} 10. O-O {[%clk 0:02:54]}  Nc6 {[%clk 0:02:38]} 11. dxc5 {[%clk 0:02:52]}  Nxc5 {[%clk 0:02:31]} 12. Bc2 {[%clk 0:02:52]}  Bf6 {[%clk 0:02:30]} 13. Rb1 {[%clk 0:02:51]}  e5 {[%clk 0:02:26]} 14. Bh2 {[%clk 0:02:50]}  d4 {[%clk 0:02:15]} 15. exd4 {[%clk 0:02:47]}  exd4 {[%clk 0:02:15]} 16. b4 {[%clk 0:02:47]}  d3 {[%clk 0:02:02]} 17. bxc5 {[%clk 0:02:42]}  dxc2 {[%clk 0:02:01]} 18. Qxc2 {[%clk 0:02:43]}  Re8 {[%clk 0:01:53]} 19. Bd6 {[%clk 0:02:37]}  b6 {[%clk 0:01:51]} 20. Rfe1 {[%clk 0:02:32]}  Be6 {[%clk 0:01:49]} 21. Nb3 {[%clk 0:02:08]}  Rc8 {[%clk 0:01:40]} 22. Rbd1 {[%clk 0:02:04]}  Qd7 {[%clk 0:01:34]} 23. cxb6 {[%clk 0:01:54]}  axb6 {[%clk 0:01:30]} 24. Re2 {[%clk 0:01:33]}  Qf7 {[%clk 0:01:19]} 25. Rde1 {[%clk 0:01:24]}  Bd7 {[%clk 0:00:57]} 26. Qd3 {[%clk 0:00:57]}  Rxe2 {[%clk 0:00:53]} 27. Rxe2 {[%clk 0:00:58]}  Be6 {[%clk 0:00:45]} 28. Nfd2 {[%clk 0:00:44]}  Rd8 {[%clk 0:00:43]} 29. Qg3 {[%clk 0:00:45]}  Bxc4 {[%clk 0:00:29]} 30. Nxc4 {[%clk 0:00:45]}  Qxc4 {[%clk 0:00:28]} 31. Bc7 {[%clk 0:00:45]}  Rd1+ {[%clk 0:00:20]} 32. Kh2 {[%clk 0:00:45]}  Qxe2 {[%clk 0:00:19]} 33. h4 {[%clk 0:00:44]}  Rd7 {[%clk 0:00:15]} 34. Bxb6 {[%clk 0:00:43]}  Qd3 {[%clk 0:00:12]} 35. Nc5 {[%clk 0:00:40]}  Qxg3+ {[%clk 0:00:11]} 36. fxg3 {[%clk 0:00:41]}  Rd1 {[%clk 0:00:08]} 37. a4 {[%clk 0:00:41]}  Ra1 {[%clk 0:00:08]} 38. h5 {[%clk 0:00:39]}  Bd4 {[%clk 0:00:07]} 39. Nd7 {[%clk 0:00:37]}  Bxb6 {[%clk 0:00:07]} 40. Nxb6 {[%clk 0:00:38]}  Kf7 {[%clk 0:00:06]} 41. g4 {[%clk 0:00:38]}  fxg4 {[%clk 0:00:06]} 42. Kg3 {[%clk 0:00:38]}  Ra3+ {[%clk 0:00:05]} 43. Kxg4 {[%clk 0:00:38]}  Ne5+ {[%clk 0:00:05]} 44. Kf5 {[%clk 0:00:38]}  Nd3 {[%clk 0:00:05]} 45. Nc4 {[%clk 0:00:38]}  Rxa4 {[%clk 0:00:04]} 46. Nd6+ {[%clk 0:00:39]}  Kf8 {[%clk 0:00:03]} 47. g4 {[%clk 0:00:40]}  Ra5+ {[%clk 0:00:03]} 48. Ke4 {[%clk 0:00:40]}  Nf2+ {[%clk 0:00:03]} 49. Kf3 {[%clk 0:00:40]}  Nd3 {[%clk 0:00:03]} 50. Ke4 {[%clk 0:00:39]}  Nb4 {[%clk 0:00:03]} 51. Nf5 {[%clk 0:00:39]}  Rxf5 {[%clk 0:00:02]} 52. Kxf5 {[%clk 0:00:39]}  Kf7 {[%clk 0:00:02]} 53. Ke5 {[%clk 0:00:39]}  g6 {[%clk 0:00:03]} 54. h6 {[%clk 0:00:39]}  Nd3+ {[%clk 0:00:02]} 55. Ke4 {[%clk 0:00:39]}  Nf2+ {[%clk 0:00:01]} 56. Kf3 {[%clk 0:00:40]}  Nxg4 {[%clk 0:00:01]} 57. Kxg4 {[%clk 0:00:40]}  Kf6 {[%clk 0:00:01]} 58. Kf4 {[%clk 0:00:40]}  g5+ {[%clk 0:00:01]} 59. Kg4 {[%clk 0:00:41]}  Kg6 {[%clk 0:00:02]} 60. Kg3 {[%clk 0:00:41]}  Kxh6 {[%clk 0:00:02]} 61. Kh3 {[%clk 0:00:42]}  Kg6 {[%clk 0:00:03]} 62. Kg3 {[%clk 0:00:43]}  h5 {[%clk 0:00:03]} 63. Kh3 {[%clk 0:00:44]}  Kf5 {[%clk 0:00:04]} 64. Kg3 {[%clk 0:00:45]}  g4 {[%clk 0:00:04]} 65. Kg2 {[%clk 0:00:46]}  Kf4 {[%clk 0:00:04]} 66. Kf2 {[%clk 0:00:47]}  h4 {[%clk 0:00:05]} 67. Kg2 {[%clk 0:00:48]}  h3+ {[%clk 0:00:05]} 68. Kh2 {[%clk 0:00:48]}  Kf3 {[%clk 0:00:05]} 69. Kg1 {[%clk 0:00:49]}  Kg3 {[%clk 0:00:06]} 70. Kh1 {[%clk 0:00:49]}  Kf2 {[%clk 0:00:06]} 71. Kh2 {[%clk 0:00:50]}  g3+ {[%clk 0:00:07]} 72. Kxh3 {[%clk 0:00:48]}  g2 {[%clk 0:00:07]} 0-1

[Event "January 9 Late 2024"]
[Site "https://www.chess.com"]
[Date "2024.01.09"]
[Round "11"]
[White "Glashausser, Sho"]
[Black "Hoffmann, Asa"]
[Result "1/2-1/2"]
[Board "106"]
[TimeControl "180+1"]
[WhiteFideId "30908329"]
[BlackFideId "2001470"]
[WhiteElo "2198"]
[BlackElo "2372"]
[WhiteTeam "USA"]
[BlackTeam "USA"]
[WhiteClock "0:00:06"]
[BlackClock "0:01:14"]

1. Nf3 {[%clk 0:02:51]}  d6 {[%clk 0:02:59]} 2. d4 {[%clk 0:02:49]}  Bg4 {[%clk 0:02:58]} 3. Nbd2 {[%clk 0:02:32]}  Nf6 {[%clk 0:02:56]} 4. h3 {[%clk 0:02:32]}  Bh5 {[%clk 0:02:56]} 5. e4 {[%clk 0:02:28]}  Nbd7 {[%clk 0:02:55]} 6. c3 {[%clk 0:02:27]}  e5 {[%clk 0:02:53]} 7. Qb3 {[%clk 0:02:20]}  b6 {[%clk 0:02:50]} 8. Bb5 {[%clk 0:02:08]}  a6 {[%clk 0:02:43]} 9. Bc6 {[%clk 0:02:07]}  Rb8 {[%clk 0:02:43]} 10. dxe5 {[%clk 0:02:06]}  dxe5 {[%clk 0:02:39]} 11. Nxe5 {[%clk 0:02:06]}  Bd6 {[%clk 0:02:37]} 12. Bxd7+ {[%clk 0:01:37]}  Nxd7 {[%clk 0:02:36]} 13. Nc6 {[%clk 0:01:37]}  Qc8 {[%clk 0:02:35]} 14. Nxb8 {[%clk 0:01:36]}  Qxb8 {[%clk 0:02:33]} 15. Nc4 {[%clk 0:01:35]}  Nc5 {[%clk 0:02:28]} 16. Nxd6+ {[%clk 0:01:29]}  cxd6 {[%clk 0:02:27]} 17. Qd5 {[%clk 0:01:27]}  Bg6 {[%clk 0:02:25]} 18. O-O {[%clk 0:01:13]}  O-O {[%clk 0:02:25]} 19. f3 {[%clk 0:01:11]}  Kh8 {[%clk 0:02:18]} 20. Bf4 {[%clk 0:01:10]}  Rd8 {[%clk 0:02:10]} 21. Rad1 {[%clk 0:01:05]}  Ne6 {[%clk 0:02:07]} 22. Bxd6 {[%clk 0:01:00]}  Qc8 {[%clk 0:02:07]} 23. e5 {[%clk 0:00:50]}  h5 {[%clk 0:01:58]} 24. Qb3 {[%clk 0:00:46]}  b5 {[%clk 0:01:57]} 25. Qb4 {[%clk 0:00:44]}  Qc6 {[%clk 0:01:52]} 26. Qh4 {[%clk 0:00:40]}  Kg8 {[%clk 0:01:51]} 27. Kh2 {[%clk 0:00:38]}  Rc8 {[%clk 0:01:49]} 28. f4 {[%clk 0:00:28]}  Be4 {[%clk 0:01:42]} 29. Rf2 {[%clk 0:00:26]}  g6 {[%clk 0:01:42]} 30. g4 {[%clk 0:00:19]}  Qb6 {[%clk 0:01:39]} 31. Re2 {[%clk 0:00:16]}  Bf3 {[%clk 0:01:38]} 32. Rdd2 {[%clk 0:00:14]}  Bxe2 {[%clk 0:01:37]} 33. Rxe2 {[%clk 0:00:14]}  hxg4 {[%clk 0:01:36]} 34. hxg4 {[%clk 0:00:13]}  Nxf4 {[%clk 0:01:33]} 35. Qf2 {[%clk 0:00:13]}  Qxf2+ {[%clk 0:01:32]} 36. Rxf2 {[%clk 0:00:13]}  Nd3 {[%clk 0:01:30]} 37. Rd2 {[%clk 0:00:12]}  Nc5 {[%clk 0:01:25]} 38. Bxc5 {[%clk 0:00:09]}  Rxc5 {[%clk 0:01:25]} 39. Rd6 {[%clk 0:00:09]}  Rxe5 {[%clk 0:01:24]} 40. Rxa6 {[%clk 0:00:08]}  Re2+ {[%clk 0:01:24]} 41. Kg3 {[%clk 0:00:08]}  Rxb2 {[%clk 0:01:24]} 42. a4 {[%clk 0:00:06]}  bxa4 {[%clk 0:01:22]} 43. Rxa4 {[%clk 0:00:06]}  Rc2 {[%clk 0:01:22]} 44. Rc4 {[%clk 0:00:03]}  Kg7 {[%clk 0:01:21]} 45. Rc6 {[%clk 0:00:03]}  f6 {[%clk 0:01:17]} 46. Rc7+ {[%clk 0:00:02]}  Kh6 {[%clk 0:01:17]} 47. Rc6 {[%clk 0:00:03]}  Kg5 {[%clk 0:01:17]} 48. Rc5+ {[%clk 0:00:03]}  f5 {[%clk 0:01:17]} 49. gxf5 {[%clk 0:00:03]}  gxf5 {[%clk 0:01:17]} 50. Kf3 {[%clk 0:00:04]}  Rd2 {[%clk 0:01:16]} 51. Rc4 {[%clk 0:00:04]}  Rd3+ {[%clk 0:01:16]} 52. Kf2 {[%clk 0:00:04]}  f4 {[%clk 0:01:15]} 53. Rc8 {[%clk 0:00:03]}  Kg4 {[%clk 0:01:14]} 54. Rg8+ {[%clk 0:00:04]}  Kf5 {[%clk 0:01:13]} 55. Rf8+ {[%clk 0:00:04]}  Ke5 {[%clk 0:01:13]} 56. Re8+ {[%clk 0:00:04]}  Kd5 {[%clk 0:01:13]} 57. Rd8+ {[%clk 0:00:05]}  Kc4 {[%clk 0:01:14]} 58. Rxd3 {[%clk 0:00:04]}  Kxd3 {[%clk 0:01:13]} 59. Kf3 {[%clk 0:00:05]}  Kxc3 {[%clk 0:01:14]} 60. Kxf4 {[%clk 0:00:06]} 1/2-1/2

[Event "January 9 Late 2024"]
[Site "https://www.chess.com"]
[Date "2024.01.09"]
[Round "11"]
[White "Gerbelli Neto, Eduardo"]
[Black "Ottosen, David"]
[Result "0-1"]
[Board "107"]
[TimeControl "180+1"]
[WhiteFideId "2103281"]
[BlackFideId "2603080"]
[WhiteElo "2366"]
[BlackElo "2172"]
[WhiteTeam "BRA"]
[BlackTeam "CAN"]
[WhiteClock "0:00:00"]
[BlackClock "0:01:28"]

1. e4 {[%clk 0:02:54]}  e6 {[%clk 0:03:00]} 2. d4 {[%clk 0:02:53]}  d5 {[%clk 0:03:00]} 3. Nc3 {[%clk 0:02:52]}  Bb4 {[%clk 0:03:00]} 4. Ne2 {[%clk 0:02:52]}  Nf6 {[%clk 0:02:59]} 5. Bg5 {[%clk 0:02:49]}  dxe4 {[%clk 0:02:56]} 6. a3 {[%clk 0:02:48]}  Be7 {[%clk 0:02:55]} 7. Bxf6 {[%clk 0:02:36]}  Bxf6 {[%clk 0:02:54]} 8. Nxe4 {[%clk 0:02:36]}  Bd7 {[%clk 0:02:53]} 9. Nxf6+ {[%clk 0:02:36]}  Qxf6 {[%clk 0:02:53]} 10. Ng3 {[%clk 0:02:22]}  Bc6 {[%clk 0:02:51]} 11. Qd2 {[%clk 0:02:17]}  O-O {[%clk 0:02:50]} 12. O-O-O {[%clk 0:02:16]}  Nd7 {[%clk 0:02:46]} 13. f3 {[%clk 0:02:17]}  Rfd8 {[%clk 0:02:42]} 14. Ne4 {[%clk 0:02:16]}  Qe7 {[%clk 0:02:39]} 15. h4 {[%clk 0:02:03]}  Nf6 {[%clk 0:02:39]} 16. Bd3 {[%clk 0:01:50]}  Nxe4 {[%clk 0:02:28]} 17. Bxe4 {[%clk 0:01:50]}  Bxe4 {[%clk 0:02:28]} 18. fxe4 {[%clk 0:01:51]}  c5 {[%clk 0:02:28]} 19. d5 {[%clk 0:01:50]}  exd5 {[%clk 0:02:28]} 20. exd5 {[%clk 0:01:51]}  Rd6 {[%clk 0:02:24]} 21. h5 {[%clk 0:01:45]}  h6 {[%clk 0:02:24]} 22. Rhe1 {[%clk 0:01:43]}  Qd7 {[%clk 0:02:20]} 23. c4 {[%clk 0:01:37]}  a6 {[%clk 0:02:19]} 24. Re5 {[%clk 0:01:17]}  b5 {[%clk 0:02:18]} 25. b3 {[%clk 0:01:12]}  bxc4 {[%clk 0:02:17]} 26. bxc4 {[%clk 0:01:13]}  Rb8 {[%clk 0:02:12]} 27. Rde1 {[%clk 0:00:51]}  Qa4 {[%clk 0:02:08]} 28. Qc3 {[%clk 0:00:20]}  Rdb6 {[%clk 0:02:02]} 29. Re7 {[%clk 0:00:05]}  Rb1+ {[%clk 0:01:55]} 30. Kd2 {[%clk 0:00:05]}  R8b2+ {[%clk 0:01:50]} 31. Kd3 {[%clk 0:00:05]}  Rxe1 {[%clk 0:01:48]} 32. Qxe1 {[%clk 0:00:03]}  Qb3+ {[%clk 0:01:37]} 33. Qc3 {[%clk 0:00:03]}  Qd1+ {[%clk 0:01:33]} 34. Ke4 {[%clk 0:00:04]}  Re2+ {[%clk 0:01:32]} 35. Kf4 {[%clk 0:00:00]}  Rxe7 {[%clk 0:01:28]} 0-1

[Event "January 9 Late 2024"]
[Site "https://www.chess.com"]
[Date "2024.01.09"]
[Round "11"]
[White "Ghosh, Chanchal Kumer"]
[Black "Albuquerque Junior,Wellington S."]
[Result "1-0"]
[Board "108"]
[TimeControl "180+1"]
[WhiteFideId "10201858"]
[BlackFideId "2151480"]
[WhiteElo "2143"]
[BlackElo "2360"]
[WhiteTeam "BAN"]
[BlackTeam "BRA"]
[WhiteClock "0:00:05"]
[BlackClock "0:00:00"]

1. e4 {[%clk 0:02:54]}  c5 {[%clk 0:02:58]} 2. Nf3 {[%clk 0:02:54]}  d6 {[%clk 0:02:59]} 3. d4 {[%clk 0:02:54]}  cxd4 {[%clk 0:03:00]} 4. Nxd4 {[%clk 0:02:54]}  Nf6 {[%clk 0:03:00]} 5. Nc3 {[%clk 0:02:54]}  Nc6 {[%clk 0:03:01]} 6. Be2 {[%clk 0:02:51]}  e5 {[%clk 0:03:00]} 7. Nb3 {[%clk 0:02:51]}  Be7 {[%clk 0:03:00]} 8. Be3 {[%clk 0:02:50]}  O-O {[%clk 0:02:55]} 9. O-O {[%clk 0:02:51]}  Be6 {[%clk 0:02:54]} 10. f4 {[%clk 0:02:50]}  exf4 {[%clk 0:02:55]} 11. Bxf4 {[%clk 0:02:49]}  Ne5 {[%clk 0:02:55]} 12. Kh1 {[%clk 0:02:35]}  Rc8 {[%clk 0:02:50]} 13. Nd4 {[%clk 0:02:13]}  Qb6 {[%clk 0:02:14]} 14. Rb1 {[%clk 0:02:03]}  Ng6 {[%clk 0:01:41]} 15. Bg3 {[%clk 0:01:54]}  a6 {[%clk 0:01:28]} 16. Nf5 {[%clk 0:01:50]}  Bxf5 {[%clk 0:01:25]} 17. exf5 {[%clk 0:01:51]}  Ne5 {[%clk 0:01:25]} 18. Bh4 {[%clk 0:01:19]}  Qd8 {[%clk 0:01:25]} 19. Bxf6 {[%clk 0:01:17]}  Bxf6 {[%clk 0:01:26]} 20. Nd5 {[%clk 0:01:17]}  Re8 {[%clk 0:01:21]} 21. c3 {[%clk 0:01:16]}  b5 {[%clk 0:01:21]} 22. a4 {[%clk 0:01:11]}  Nc4 {[%clk 0:01:00]} 23. axb5 {[%clk 0:01:00]}  axb5 {[%clk 0:01:01]} 24. Bxc4 {[%clk 0:00:56]}  bxc4 {[%clk 0:00:54]} 25. Qg4 {[%clk 0:00:51]}  Rc5 {[%clk 0:00:47]} 26. Rbd1 {[%clk 0:00:46]}  Re5 {[%clk 0:00:33]} 27. Nxf6+ {[%clk 0:00:17]}  Qxf6 {[%clk 0:00:33]} 28. h3 {[%clk 0:00:14]}  h6 {[%clk 0:00:20]} 29. Rf3 {[%clk 0:00:13]}  Rxf5 {[%clk 0:00:19]} 30. Rxf5 {[%clk 0:00:13]}  Qxf5 {[%clk 0:00:18]} 31. Qxf5 {[%clk 0:00:11]}  Rxf5 {[%clk 0:00:19]} 32. Rxd6 {[%clk 0:00:11]}  Rb5 {[%clk 0:00:18]} 33. Rd2 {[%clk 0:00:11]}  f5 {[%clk 0:00:18]} 34. Kg1 {[%clk 0:00:11]}  Kf7 {[%clk 0:00:19]} 35. Kf2 {[%clk 0:00:11]}  Kf6 {[%clk 0:00:19]} 36. Ke3 {[%clk 0:00:11]}  Ke5 {[%clk 0:00:18]} 37. g3 {[%clk 0:00:10]}  g5 {[%clk 0:00:18]} 38. Kf3 {[%clk 0:00:10]}  h5 {[%clk 0:00:17]} 39. Re2+ {[%clk 0:00:10]}  Kf6 {[%clk 0:00:17]} 40. Rd2 {[%clk 0:00:10]}  Ke5 {[%clk 0:00:17]} 41. Re2+ {[%clk 0:00:09]}  Kf6 {[%clk 0:00:18]} 42. Rd2 {[%clk 0:00:10]}  Rb6 {[%clk 0:00:16]} 43. Ke3 {[%clk 0:00:08]}  h4 {[%clk 0:00:13]} 44. gxh4 {[%clk 0:00:07]}  gxh4 {[%clk 0:00:14]} 45. Kf4 {[%clk 0:00:08]}  Re6 {[%clk 0:00:14]} 46. Rd5 {[%clk 0:00:06]}  Re4+ {[%clk 0:00:13]} 47. Kf3 {[%clk 0:00:06]}  Kg5 {[%clk 0:00:11]} 48. Rc5 {[%clk 0:00:05]}  Rf4+ {[%clk 0:00:10]} 49. Ke3 {[%clk 0:00:05]}  Re4+ {[%clk 0:00:10]} 50. Kf3 {[%clk 0:00:05]}  Kf6 {[%clk 0:00:00]} 51. Rc8 {[%clk 0:00:05]} 1-0

[Event "January 9 Late 2024"]
[Site "https://www.chess.com"]
[Date "2024.01.09"]
[Round "11"]
[White "Antunes, Luciano Justi"]
[Black "Lemos, Dawton Almino"]
[Result "0-1"]
[Board "109"]
[TimeControl "180+1"]
[WhiteFideId "2126893"]
[BlackFideId "2146797"]
[WhiteElo "2137"]
[BlackElo "2351"]
[WhiteTeam "BRA"]
[BlackTeam "BRA"]
[WhiteClock "0:00:00"]
[BlackClock "0:00:20"]

1. d4 {[%clk 0:03:00]}  Nf6 {[%clk 0:02:56]} 2. Bg5 {[%clk 0:03:00]}  Ne4 {[%clk 0:02:54]} 3. Bf4 {[%clk 0:02:59]}  d5 {[%clk 0:02:50]} 4. f3 {[%clk 0:02:56]}  Nf6 {[%clk 0:02:48]} 5. c4 {[%clk 0:02:55]}  e6 {[%clk 0:02:44]} 6. Nc3 {[%clk 0:02:54]}  Be7 {[%clk 0:02:44]} 7. e3 {[%clk 0:02:52]}  c6 {[%clk 0:02:38]} 8. Bd3 {[%clk 0:02:51]}  Nbd7 {[%clk 0:02:37]} 9. Nge2 {[%clk 0:02:49]}  dxc4 {[%clk 0:02:37]} 10. Bxc4 {[%clk 0:02:49]}  b5 {[%clk 0:02:36]} 11. Bd3 {[%clk 0:02:48]}  a6 {[%clk 0:02:36]} 12. O-O {[%clk 0:02:39]}  c5 {[%clk 0:02:29]} 13. Kh1 {[%clk 0:02:34]}  O-O {[%clk 0:02:28]} 14. Ne4 {[%clk 0:02:27]}  Bb7 {[%clk 0:02:20]} 15. Nd6 {[%clk 0:02:12]}  Qb6 {[%clk 0:01:55]} 16. Nxb7 {[%clk 0:02:10]}  Qxb7 {[%clk 0:01:54]} 17. e4 {[%clk 0:02:02]}  cxd4 {[%clk 0:01:50]} 18. e5 {[%clk 0:01:39]}  Nd5 {[%clk 0:01:45]} 19. Qd2 {[%clk 0:01:36]}  Bb4 {[%clk 0:01:39]} 20. Qc2 {[%clk 0:01:19]}  g6 {[%clk 0:01:33]} 21. Be4 {[%clk 0:01:16]}  Rfc8 {[%clk 0:01:14]} 22. Qd3 {[%clk 0:01:16]}  Bc5 {[%clk 0:00:45]} 23. a3 {[%clk 0:01:10]}  Ba7 {[%clk 0:00:39]} 24. Bg3 {[%clk 0:01:00]}  Nc5 {[%clk 0:00:36]} 25. Bxd5 {[%clk 0:00:38]}  Qxd5 {[%clk 0:00:23]} 26. Qxd4 {[%clk 0:00:36]}  Qxd4 {[%clk 0:00:22]} 27. Nxd4 {[%clk 0:00:36]}  Nd3 {[%clk 0:00:22]} 28. Rad1 {[%clk 0:00:23]}  Nxb2 {[%clk 0:00:21]} 29. Rd2 {[%clk 0:00:14]}  Nc4 {[%clk 0:00:21]} 30. Rd3 {[%clk 0:00:00]}  Rd8 {[%clk 0:00:20]} 0-1

[Event "January 9 Late 2024"]
[Site "https://www.chess.com"]
[Date "2024.01.09"]
[Round "11"]
[White "Harish, Neeraj"]
[Black "Blanco Diez, David"]
[Result "0-1"]
[Board "111"]
[TimeControl "180+1"]
[WhiteFideId "30958130"]
[BlackFideId "32032927"]
[WhiteElo "2263"]
[BlackElo "2433"]
[WhiteTeam "USA"]
[BlackTeam "ESP"]
[WhiteClock "0:00:57"]
[BlackClock "0:01:11"]

1. e4 {[%clk 0:03:00]}  g6 {[%clk 0:02:59]} 2. d4 {[%clk 0:02:59]}  Bg7 {[%clk 0:03:00]} 3. Nc3 {[%clk 0:02:59]}  d5 {[%clk 0:03:00]} 4. e5 {[%clk 0:02:59]}  f6 {[%clk 0:03:00]} 5. f4 {[%clk 0:02:58]}  Nh6 {[%clk 0:02:59]} 6. Nf3 {[%clk 0:02:58]}  Bg4 {[%clk 0:03:00]} 7. Be2 {[%clk 0:02:58]}  Nf5 {[%clk 0:03:00]} 8. O-O {[%clk 0:02:58]}  O-O {[%clk 0:03:00]} 9. h3 {[%clk 0:02:58]}  Bxf3 {[%clk 0:02:59]} 10. Bxf3 {[%clk 0:02:59]}  e6 {[%clk 0:02:56]} 11. g4 {[%clk 0:02:59]}  Nh4 {[%clk 0:02:56]} 12. Bh1 {[%clk 0:03:00]}  fxe5 {[%clk 0:02:55]} 13. dxe5 {[%clk 0:03:00]}  c5 {[%clk 0:02:49]} 14. Qe1 {[%clk 0:02:58]}  Nc6 {[%clk 0:02:49]} 15. Be3 {[%clk 0:02:55]}  g5 {[%clk 0:02:44]} 16. Rd1 {[%clk 0:02:47]}  gxf4 {[%clk 0:02:38]} 17. Bxf4 {[%clk 0:02:45]}  Ng6 {[%clk 0:02:28]} 18. Bg3 {[%clk 0:02:35]}  Rxf1+ {[%clk 0:02:24]} 19. Qxf1 {[%clk 0:02:26]}  Ncxe5 {[%clk 0:02:17]} 20. Bxe5 {[%clk 0:02:18]}  Bxe5 {[%clk 0:02:11]} 21. Qe2 {[%clk 0:02:05]}  Qf6 {[%clk 0:02:04]} 22. Rf1 {[%clk 0:02:01]}  Bd4+ {[%clk 0:02:03]} 23. Kh2 {[%clk 0:01:48]}  Qe7 {[%clk 0:01:53]} 24. Nb5 {[%clk 0:01:13]}  Be5+ {[%clk 0:01:46]} 25. Kg1 {[%clk 0:01:12]}  a6 {[%clk 0:01:47]} 26. Nc3 {[%clk 0:01:11]}  Bd4+ {[%clk 0:01:47]} 27. Kh2 {[%clk 0:01:11]}  Qd6+ {[%clk 0:01:47]} 28. Kg2 {[%clk 0:01:11]}  Nf4+ {[%clk 0:01:33]} 29. Rxf4 {[%clk 0:01:10]}  Qxf4 {[%clk 0:01:34]} 30. Qxe6+ {[%clk 0:01:10]}  Kh8 {[%clk 0:01:35]} 31. h4 {[%clk 0:01:01]}  Rf8 {[%clk 0:01:28]} 32. Nxd5 {[%clk 0:01:00]}  Qf1+ {[%clk 0:01:26]} 33. Kg3 {[%clk 0:00:57]}  Qxh1 {[%clk 0:01:11]} 0-1

[Event "January 9 Late 2024"]
[Site "https://www.chess.com"]
[Date "2024.01.10"]
[Round "11"]
[White "Goncalves, Samuel Jesus P"]
[Black "Vila Dupla, Aurelio"]
[Result "1-0"]
[Board "112"]
[TimeControl "180+1"]
[WhiteFideId "1945130"]
[BlackFideId "2203383"]
[WhiteElo "2392"]
[BlackElo "2168"]
[WhiteTeam "POR"]
[BlackTeam "ESP"]
[WhiteClock "0:00:08"]
[BlackClock "0:00:00"]

1. e4 {[%clk 0:03:00]}  c5 {[%clk 0:02:58]} 2. Nf3 {[%clk 0:03:00]}  d6 {[%clk 0:02:55]} 3. Bc4 {[%clk 0:03:00]}  Nc6 {[%clk 0:02:53]} 4. O-O {[%clk 0:02:59]}  e6 {[%clk 0:02:53]} 5. Re1 {[%clk 0:02:55]}  Be7 {[%clk 0:02:53]} 6. d3 {[%clk 0:02:50]}  h6 {[%clk 0:02:49]} 7. c3 {[%clk 0:02:47]}  Nf6 {[%clk 0:02:39]} 8. Bb3 {[%clk 0:02:35]}  Na5 {[%clk 0:02:28]} 9. Bc2 {[%clk 0:02:34]}  e5 {[%clk 0:02:28]} 10. h3 {[%clk 0:02:27]}  O-O {[%clk 0:02:27]} 11. Nbd2 {[%clk 0:02:25]}  Be6 {[%clk 0:02:24]} 12. Nf1 {[%clk 0:02:24]}  Nc6 {[%clk 0:02:18]} 13. Ng3 {[%clk 0:02:24]}  Qd7 {[%clk 0:02:16]} 14. d4 {[%clk 0:02:18]}  cxd4 {[%clk 0:01:53]} 15. cxd4 {[%clk 0:02:19]}  exd4 {[%clk 0:01:52]} 16. Nxd4 {[%clk 0:02:19]}  Nxd4 {[%clk 0:01:53]} 17. Qxd4 {[%clk 0:02:20]}  Rfc8 {[%clk 0:01:45]} 18. Ba4 {[%clk 0:02:19]}  b5 {[%clk 0:01:40]} 19. Bb3 {[%clk 0:02:14]}  Bc4 {[%clk 0:01:31]} 20. Bf4 {[%clk 0:02:07]}  Qe6 {[%clk 0:01:27]} 21. Nf5 {[%clk 0:02:00]}  Bf8 {[%clk 0:01:21]} 22. Nxd6 {[%clk 0:01:23]}  Bxd6 {[%clk 0:01:18]} 23. Qxd6 {[%clk 0:01:21]}  Bxb3 {[%clk 0:01:17]} 24. axb3 {[%clk 0:01:21]}  Qxb3 {[%clk 0:01:17]} 25. e5 {[%clk 0:01:16]}  Rd8 {[%clk 0:01:00]} 26. Rxa7 {[%clk 0:00:37]}  Ne8 {[%clk 0:00:49]} 27. Qe7 {[%clk 0:00:22]}  Qe6 {[%clk 0:00:25]} 28. Qxe6 {[%clk 0:00:17]}  fxe6 {[%clk 0:00:26]} 29. Rea1 {[%clk 0:00:17]}  Rab8 {[%clk 0:00:22]} 30. Re7 {[%clk 0:00:12]}  Rd4 {[%clk 0:00:17]} 31. Bg3 {[%clk 0:00:11]}  Rd2 {[%clk 0:00:12]} 32. Rxe6 {[%clk 0:00:12]}  Rxb2 {[%clk 0:00:11]} 33. Re7 {[%clk 0:00:12]}  Re2 {[%clk 0:00:09]} 34. e6 {[%clk 0:00:12]}  Rc8 {[%clk 0:00:08]} 35. Raa7 {[%clk 0:00:11]}  b4 {[%clk 0:00:06]} 36. Rab7 {[%clk 0:00:11]}  Rb2 {[%clk 0:00:06]} 37. Red7 {[%clk 0:00:10]}  Rb1+ {[%clk 0:00:04]} 38. Kh2 {[%clk 0:00:10]}  b3 {[%clk 0:00:04]} 39. Be5 {[%clk 0:00:11]}  Re1 {[%clk 0:00:03]} 40. Bxg7 {[%clk 0:00:10]}  Rxe6 {[%clk 0:00:02]} 41. Bb2 {[%clk 0:00:10]}  Re2 {[%clk 0:00:02]} 42. Bd4 {[%clk 0:00:09]}  Rd2 {[%clk 0:00:00]} 43. Be3 {[%clk 0:00:08]} 1-0